[Event "45th FIDE Womens Olympiad 2024"]
[Site "Budapest"]
[Date "2024.09.19"]
[Round "8.8"]
[White "Doluhanova, Evgeniya"]
[Black "Lazarne Vajda, Szidonia"]
[Result "1/2-1/2"]
[ECO "A12"]
[WhiteElo "2304"]
[BlackElo "2283"]
[Annotator "RC"]
[PlyCount "73"]
[EventDate "2024.09.05"]
[EventType "team-tourn"]
[EventCountry "HUN"]
[SourceTitle "playchess.com"]
[Source "ChessBase"]
[SourceQuality "1"]
[WhiteTeam "Ukraine"]
[BlackTeam "Hungary"]
[WhiteTeamCountry "UKR"]
[BlackTeamCountry "HUN"]
[TimeControl "40/5400+30:1800+30"]

1. c4 {[%emt 0:00:21]} Nf6 {[%emt 0:01:46]} 2. Nf3 {[%emt 0:00:42]} c6 {[%emt 0:00:38]} 3. e3 {[%emt 0:01:02]} d5 {[%emt 0:00:38]} 4. b3 {[%emt 0:00:11]} Bf5 {[%emt 0:00:54]} 5. Bb2 {[%emt 0:00:41]} h6 {[%emt 0:00:56]} 6. Be2 {[%emt 0:00:30]} e6 {[%emt 0:01:00]} 7. O-O {[%emt 0:01:17]} Nbd7 {[%emt 0:02:23]} 8. cxd5 {[%emt 0:06:53]} exd5 {[%emt 0:04:31]} 9. d3 {[%emt 0:00:43]} Bc5 {[%emt 0:07:03]} 10. Ne5 {[%emt 0:18:59]} Nxe5 {[%emt 0:08:36]} 11. Bxe5 {[%emt 0:00:07]} Qe7 {[%emt 0:01:30]} 12. d4 {[%emt 0:10:46]} Bd6 {[%emt 0:00:12]} 13. Bxd6 {[%emt 0:00:16]} Qxd6 {[%emt 0:00:06]} 14. Nc3 {[%emt 0:00:12]} O-O {[%emt 0:03:10]} 15. a3 {[%emt 0:00:27]} Ne4 {[%emt 0:04:39]} 16. Nxe4 {[%emt 0:03:44]} Bxe4 {[%emt 0:01:27]} 17. b4 {[%emt 0:11:54]} a5 {[%emt 0:10:19]} 18. b5 {[%emt 0:03:11]} c5 {[%emt 0:03:18]} 19. dxc5 {[%emt 0:01:03]} Qxc5 {[%emt 0:00:03]} 20. Qd2 {[%emt 0:02:27]} Rfc8 {[%emt 0:04:30]} 21. Rfc1 {[%emt 0:01:06]} Qb6 {[%emt 0:00:38]} 22. Rc3 {[%emt 0:13:37]} Rxc3 {[%emt 0:08:49]} 23. Qxc3 {[%emt 0:00:06]} Rd8 {[%emt 0:00:48]} 24. Rd1 {[%emt 0:02:06]} Rd7 {[%emt 0:02:22]} 25. f3 {[%emt 0:08:57]} Bf5 {[%emt 0:05:39]} 26. Qe5 {[%emt 0:00:37]} Qe6 {[%emt 0:03:32]} 27. Qb8+ {[%emt 0:02:13]} Kh7 {[%emt 0:00:31]} 28. Qf4 {[%emt 0:00:27]} Bg6 {[%emt 0:06:22]} 29. Kf2 {[%emt 0:00:38]} Qe7 {[%emt 0:00:11]} 30. a4 {[%emt 0:01:09]} Qa3 {[%emt 0:00:59]} 31. h4 {[%emt 0:00:31]} h5 {[%emt 0:05:48]} 32. Rd4 {[%emt 0:03:31]} Rd6 {[%emt 0:00:17]} 33. Qg5 {[%emt 0:01:20]} Re6 {[%emt 0:01:57]} 34. Qf4 {[%emt 0:02:46]} Rf6 {[%emt 0:01:18]} 35. Qg5 {[%emt 0:01:00]} Re6 {[%emt 0:00:11]} 36. Qf4 {[%emt 0:01:16]} Rf6 {[%emt 0:00:09]} 37. Qg5 {[%emt 0:01:08]} 1/2-1/2

[Event "45th FIDE Womens Olympiad 2024"]
[Site "Budapest"]
[Date "2024.09.19"]
[Round "8.8"]
[White "Richards, TrisAnn"]
[Black "Belgarde, Roudena"]
[Result "1-0"]
[ECO "A28"]
[WhiteElo "1653"]
[BlackElo "1540"]
[PlyCount "111"]
[EventDate "2024.09.05"]
[EventType "team-tourn"]
[EventCountry "HUN"]
[WhiteTeam "Saint Lucia"]
[BlackTeam "Haiti"]
[BlackTeamCountry "HAI"]
[TimeControl "40/5400+30:1800+30"]

1. c4 e5 2. Nc3 Nf6 3. Nf3 Nc6 4. e3 Bb4 5. Qb3 O-O 6. Be2 d6 7. O-O Bxc3 8. bxc3 Bg4 9. Re1 Rb8 10. d4 exd4 11. cxd4 d5 12. Ba3 Re8 13. Rac1 dxc4 14. Qxc4 Qd5 15. Qxd5 Nxd5 16. Nd2 Bxe2 17. Rxe2 Rbc8 18. Nb3 a5 19. Rc5 Ndb4 20. d5 Ne7 21. Bxb4 axb4 22. Rd2 c6 23. d6 b6 24. Rcc2 Nd5 25. d7 Nc3 26. dxe8=Q+ Rxe8 27. a3 Ne4 28. Rd7 Nf6 29. Rd6 h6 30. axb4 Re4 31. Rd4 Re6 32. Rd8+ Kh7 33. Nd4 Re4 34. Rxc6 Re7 35. Rxb6 Rc7 36. Rc6 Ra7 37. Rc1 Ra2 38. Rdc8 Rb2 39. b5 Nd5 40. R8c2 Rb4 41. Rd2 Kg6 42. h3 h5 43. Rdd1 Kh7 44. Rb1 Ra4 45. b6 Nc3 46. b7 Nxd1 47. b8=Q Nc3 48. Qb3 Ra6 49. Qxc3 Ra7 50. Nf5 f6 51. Qd3 g6 52. Ng3 Kh6 53. e4 g5 54. Nf5+ Kg6 55. Qd8 Kf7 56. Qc8 1-0

[Event "45th FIDE Womens Olympiad 2024"]
[Site "Budapest"]
[Date "2024.09.19"]
[Round "8.9"]
[White "Assaubayeva, Bibisara"]
[Black "Daulyte-Cornette, Deimante"]
[Result "1-0"]
[ECO "C58"]
[WhiteElo "2482"]
[BlackElo "2369"]
[Annotator "TA"]
[PlyCount "85"]
[EventDate "2024.09.05"]
[EventType "team-tourn"]
[EventCountry "HUN"]
[SourceTitle "playchess.com"]
[Source "ChessBase"]
[SourceQuality "1"]
[WhiteTeam "Kazakhstan"]
[BlackTeam "France"]
[WhiteTeamCountry "KAZ"]
[BlackTeamCountry "FRA"]
[TimeControl "40/5400+30:1800+30"]

{[%evp 14,85,20,31,27,29,20,-4,50,34,53,47,47,54,41,52,65,76,108,121,116,92,94,90,98,87,99,82,96,96,101,68,86,64,107,100,86,75,93,52,86,64,78,49,58,39,32,25,70,72,153,161,274,225,265,265,278,258,259,254,489,475,433,498,501,468,511,684,734,722,1156,1154,1077,1026]} 1. e4 {[%emt 0:00:02]} e5 {[%emt 0:00:10]} 2. Nf3 {[%emt 0:00:05]} Nc6 {[%emt 0:00:07]} 3. Bc4 {[%emt 0:00:05]} Nf6 {[%emt 0:00:14]} 4. Ng5 {[%emt 0:00:08]} d5 {[%emt 0:00:26]} 5. exd5 {[%emt 0:00:06]} Na5 {[%emt 0:00:26]} 6. Bb5+ {[%emt 0:00:06]} c6 {[%emt 0:00:39]} 7. dxc6 {[%emt 0:00:07]} bxc6 {[%emt 0:00:20]} 8. Bd3 {[%emt 0:00:06]} Ng4 {[%emt 0:08:14]} 9. Nh3 {[%emt 0:00:18]} (9. Nxh7 Bc5 10. Rf1 g6 $17 (10... Nxh2 11. Qh5 $19)) 9... Bc5 {[%emt 0:00:50]} 10. Be2 {[%emt 0:07:20]} f5 {[%emt 0:12:00]} ({Black should play} 10... Nf6 $11) 11. d3 {[%emt 0:04:10]} O-O {[%emt 0:01:56]} 12. O-O {[%emt 0:01:57]} h6 {[%emt 0:13:14]} 13. Kh1 {[%emt 0:10:01]} Nb7 {[%emt 0:07:58]} 14. Nc3 {[%emt 0:06:16]} Nd6 {[%emt 0:06:59]} 15. Na4 {[%emt 0:02:41]} Nxf2+ {[%emt 0:00:59]} 16. Nxf2 {[%emt 0:01:45]} Bxf2 {[%emt 0:00:06]} 17. Rxf2 {[%emt 0:01:18]} Qh4 {[%emt 0:00:09][%csl LRa4,LRf2] [#] Prevents b3} 18. Be3 {[%emt 0:04:51]} Qxa4 {[%emt 0:00:16]} 19. Qd2 {[%emt 0:04:38]} Qh4 {[%emt 0:07:23]} 20. Bc5 {[%emt 0:03:34][%cal Oe2f3] Threatens to win with Bf3!} Rd8 {[%emt 0:08:17][%cal Od6e4]} 21. Qc3 {[%emt 0:05:35]} Qf6 {[%emt 0:01:20]} 22. a4 {[%emt 0:04:14] Wards off Nb5} Be6 {[%emt 0:01:35]} 23. Qa3 {[%emt 0:05:22]} Nc8 {[%emt 0:10:54]} 24. a5 {[%emt 0:02:21]} Rd7 {[%emt 0:01:18]} 25. Bf3 {[%emt 0:05:32] This pair of bishops is nice.} Bd5 {[%emt 0:02:53]} 26. Raf1 {[%emt 0:00:16] [#] Black must now prevent Bxd5+.} g6 {[%emt 0:03:35]} 27. Qa4 {[%emt 0:08:08] aiming for Re1.} Ne7 {[%emt 0:02:24]} 28. a6 {[%emt 0:02:51] White is more active.} Rb8 {[%emt 0:02:01]} 29. b4 {[%emt 0:01:55]} Bxf3 {[%emt 0:00:56]} 30. Rxf3 {[%emt 0:00:10]} Nd5 {[%emt 0:00:12]} 31. c4 $1 $36 {[%emt 0:02:28][%mdl 2048] Black is under strong pressure.} Nf4 {[%emt 0:01:07]} ({Better is} 31... Nc7) 32. d4 $1 $16 {[%emt 0:01:18]} Ne6 {[%emt 0:02:08]} (32... Qe6 {might work better.} 33. Qb3 Ne2) 33. Qxc6 $18 {[%emt 0:02:48]} Rc7 {[%emt 0:01:26]} 34. Qd5 {[%emt 0:01:46] Hoping for Bd6.} Rd8 {[%emt 0:02:27] Black is weak on the dark squares} 35. Bd6 {[%emt 0:00:45]} (35. Qxe5 Qxe5 36. dxe5 Nxc5 37. bxc5 Re8 $15) (35. dxe5 $6 Rxd5 36. exf6 Rdd7 $18) 35... e4 {[%emt 0:00:44]} 36. Re3 {[%emt 0:04:23][%cal Bf3e3,Be3e4,Be4e6][%mdl 32] Rxe4 would now be deadly.} Kh7 $2 {[%emt 0:00:46]} (36... Rf7 {keeps fighting.}) 37. c5 {[%emt 0:01:25][%cal Bc4c5,Bc5c6][%mdl 32] White is clearly winning.} ({Resist} 37. Rxe4 Nf4 38. Qa5 (38. Rfxf4 Rxd6 39. Qe5 Rxc4 $11) 38... Qxd6) 37... Nxd4 {[%emt 0:01:40]} 38. Rxe4 {[%emt 0:01:39]} Nb5 {[%emt 0:00:09]} 39. Re6 {[%emt 0:00:43]} Qf7 {[%emt 0:00:20]} 40. Qe5 {[%emt 0:03:05] Against Re8} Rcd7 {[%emt 0:01:14]} 41. c6 {[%emt 0:33:26][%csl LRb5,LRd7]} Nc7 {[%emt 0:07:13]} 42. Bxc7 {[%emt 0:00:00]} Rxc7 {[%emt 0:00:25]} 43. Re1 {[%emt 0:00:00] Weighted Error Value: White=0.08 (flawless) /Black=0.29 (precise) .  Mistake:       	---       	Black=4      Inaccurate:     	White=3     	Black=4      OK:         	White=12    	Black=11     Best:        	White=4     	Black=1      Strong:       	White=2     	---} 1-0

[Event "45th FIDE Womens Olympiad 2024"]
[Site "Budapest"]
[Date "2024.09.19"]
[Round "8.9"]
[White "Shipindo, Rauha"]
[Black "Sele, Timea"]
[Result "1/2-1/2"]
[ECO "C60"]
[WhiteElo "1677"]
[BlackElo "1699"]
[PlyCount "60"]
[EventDate "2024.09.05"]
[EventType "team-tourn"]
[EventCountry "HUN"]
[WhiteTeam "Namibia"]
[BlackTeam "Liechtenstein"]
[WhiteTeamCountry "NAM"]
[BlackTeamCountry "LIE"]
[TimeControl "40/5400+30:1800+30"]

1. e4 e5 2. Nf3 Nc6 3. Bb5 g6 4. Nc3 Bg7 5. d3 Nge7 6. Be3 a6 7. Ba4 b5 8. Bb3 Na5 9. Qd2 d6 10. Ng5 Nxb3 11. axb3 Bb7 12. f4 exf4 13. Bxf4 Qd7 14. Qf2 O-O 15. O-O h6 16. Nf3 g5 17. Bd2 Ng6 18. Nd4 d5 19. Nf5 f6 20. Rae1 Ne7 21. Ng3 dxe4 22. Ncxe4 Bxe4 23. Rxe4 f5 24. Re2 Rae8 25. Bc3 Bxc3 26. bxc3 f4 27. Ne4 Nf5 28. Rfe1 Ne3 29. h3 Kg7 30. Qf3 Qe7 1/2-1/2

[Event "45th FIDE Womens Olympiad 2024"]
[Site "Budapest"]
[Date "2024.09.19"]
[Round "8.10"]
[White "Milliet, Sophie"]
[Black "Kamalidenova, Meruert"]
[Result "1-0"]
[ECO "A16"]
[WhiteElo "2348"]
[BlackElo "2352"]
[Annotator "TA"]
[PlyCount "71"]
[EventDate "2024.09.05"]
[EventType "team-tourn"]
[EventCountry "HUN"]
[SourceTitle "playchess.com"]
[Source "ChessBase"]
[SourceQuality "1"]
[WhiteTeam "France"]
[BlackTeam "Kazakhstan"]
[WhiteTeamCountry "FRA"]
[BlackTeamCountry "KAZ"]
[TimeControl "40/5400+30:1800+30"]

{[%evp 9,71,29,50,25,16,23,48,32,43,36,43,25,16,22,13,0,-6,-34,-16,-43,-55,-66,-64,-66,-65,-53,0,0,8,11,29,23,50,34,41,23,51,51,119,93,115,0,0,0,0,-26,203,207,202,206,200,201,327,303,306,322,670,691,759,736,5226,4894,5724,2232]} 1. Nf3 {[%emt 0:00:04]} Nf6 {[%emt 0:00:19]} 2. c4 {[%emt 0:00:05]} g6 {[%emt 0:00:53]} 3. Nc3 {[%emt 0:00:07]} Bg7 {[%emt 0:00:12]} 4. e4 {[%emt 0:00:08]} e5 {[%emt 0:02:21]} 5. Nxe5 {[%emt 0:00:17]} O-O {[%emt 0:00:29]} 6. Bd3 {[%emt 0:01:39][%cal Bf1d3,Bd3b5,Bb5a4,Ba4b3][%mdl 32]} Re8 {[%emt 0:05:34]} 7. Nf3 {[%emt 0:00:14][%cal Be5f3,Bf3d4,Bd4c2][%mdl 32]} d5 {[%emt 0:05:04]} 8. cxd5 {[%emt 0:01:29] White is slightly better.} c6 {[%emt 0:00:37][%cal Rc6d5]} 9. O-O {[%emt 0:02:11]} cxd5 {[%emt 0:00:14]} 10. e5 {[%emt 0:02:00]} Nfd7 {[%emt 0:04:25]} 11. Bb5 {[%emt 0:01:19] Strongly threatening d4.} d4 $1 {[%emt 0:00:19]} 12. Nxd4 {[%emt 0:04:29] Threatens to win with Nf3.} a6 {[%emt 0:02:03]} 13. Ba4 {[%emt 0:05:13] Nf3 would now be deadly.} b5 {[%emt 0:01:50]} 14. Bb3 {[%emt 0:02:50]} Nxe5 {[%emt 0:00:46]} (14... Rxe5 $2 15. Qf3 (15. Bxf7+ Kxf7 16. Qf3+ Kg8 $11) 15... Nc5 16. Bxf7+ (16. Qxa8 Bb7 $17) 16... Kh8 17. Ne6 (17. Qxa8 Bb7 $16) 17... Bxe6 18. Qxa8 $18 (18. Bxe6 Nc6 $11)) 15. Nc2 {[%emt 0:03:13]} Bg4 $1 {[%emt 0:08:11]} 16. f3 {[%emt 0:00:40]} Bf5 {[%emt 0:00:17] Hoping for ...Nd3.} 17. d4 {[%emt 0:16:53][%cal Bd2d4,Bd4d5,Bd5d6][%mdl 32]} Nd3 {[%emt 0:02:10]} (17... Nc4 $1 $15) 18. g4 {[%emt 0:19:57]} Nxc1 {[%emt 0:18:03]} 19. Rxc1 {[%emt 0:00:04]} Bxc2 {[%emt 0:02:11]} 20. Rxc2 {[%emt 0:00:01]} Nc6 {[%emt 0:19:07]} (20... Qxd4+ {simplifies} 21. Qxd4 Bxd4+ 22. Kg2 Ra7) 21. d5 {[%emt 0:02:09]} Nd4 {[%emt 0:00:17]} 22. Rd2 {[%emt 0:00:34]} Qg5 {[%emt 0:00:18]} 23. Kh1 {[%emt 0:05:04]} (23. Rxd4 Qe3+ 24. Kg2 Bxd4 $19 (24... Qxd4 $2 25. Ne4 $19)) 23... Qe3 {[%emt 0:05:52]} ({Better is} 23... Qf4 $14) 24. d6 $16 {[%emt 0:04:26] d7 is the strong threat.} Rad8 {[%emt 0:03:26]} 25. Rd3 {[%emt 0:09:27]} ({White must play} 25. Ne4 $1 $16 {Black must now prevent Rd3.} Nxb3 26. axb3) 25... Qf4 $11 {[%emt 0:02:15]} 26. Nd5 $36 {[%emt 0:00:55][%mdl 2048] White fights for an advantage.} Qe5 {[%emt 0:01:08]} 27. Qd2 {[%emt 0:14:12]} (27. Nc7 $5 Rf8 $8 28. Nd5 $11) 27... Kf8 $2 {[%emt 0:09:14] Loses the game.} (27... Rxd6 $2 28. Re3 Nxb3 29. Rxe5 (29. axb3 $2 Qxe3 30. Qxe3 Rxe3 $19) 29... Nxd2 (29... Rxe5 $2 30. Ne7+ Rxe7 31. Qxd6 $18) 30. Rxe8+ Bf8 31. Rc1 (31. Ne7+ Kg7 $18) 31... Rxd5 32. Rcc8 Nxf3 33. Rxf8+ Kg7 34. Kg2 $18) (27... Kh8 $11) 28. Nc7 $1 $18 {[%emt 0:00:46][%csl LRa6,LRe8]} Qe2 {[%emt 0:00:46] [#]} 29. Rd1 {[%emt 0:02:28] Active counter play!} Qxd2 {[%emt 0:00:21]} 30. R3xd2 {[%emt 0:00:09][%cal Bd3d2,Bd2f2,Bf2f7][%mdl 32]} Nxf3 {[%emt 0:02:33]} (30... Rxd6 $142 31. Nxe8 Kxe8) 31. Rf2 {[%emt 0:00:07]} Re3 {[%emt 0:00:20]} 32. Rdf1 {[%emt 0:00:46]} (32. Nxa6 Bh6 33. Rdf1 Rxd6 $11) 32... Rxb3 {[%emt 0:03:07]} (32... Ng5 $2 33. Rxf7+ (33. Bxf7 Be5 $18) 33... Nxf7 34. Rxf7+ Kg8 35. Rd7+ (35. Nxa6 $2 Rxb3 36. Rxg7+ Kxg7 $19) 35... Rxb3 36. Rxd8+ Kf7 37. Rd7+ (37. axb3 Bh6 $18) (37. Nxa6 Rxb2 38. Rd7+ Kf8 $16) 37... Kg8 38. axb3 $18) (32... Rxd6 33. Rxf3 Rxf3 34. Rxf3 Rf6) 33. axb3 {[%emt 0:00:03] White is clearly winning.} Ng5 {[%emt 0:00:02]} 34. h4 {[%emt 0:00:14]} (34. Nxa6 Rxd6 35. Nc7 Rd3 36. Nxb5 Rxb3 $18) 34... Ne4 {[%emt 0:00:02]} 35. Rxf7+ {[%emt 0:00:37]} Kg8 {[%emt 0:00:01] [#]} 36. Rxg7+ $1 {[%emt 0:00:15] Weighted Error Value: White=0.14 (very precise) /Black=0.39.  Loses game:     	---       	Black=1      Mistake:       	White=1     	Black=4      Inaccurate:     	White=3     	Black=2      OK:         	White=11    	Black=10     Best:        	White=5     	Black=4      Strong:       	---       	Black=2} 1-0

[Event "45th FIDE Womens Olympiad 2024"]
[Site "Budapest"]
[Date "2024.09.19"]
[Round "8.11"]
[White "Nurman, Alua"]
[Black "Guichard, Pauline"]
[Result "1-0"]
[ECO "B12"]
[WhiteElo "2324"]
[BlackElo "2374"]
[Annotator "RC"]
[PlyCount "95"]
[EventDate "2024.09.05"]
[EventType "team-tourn"]
[EventCountry "HUN"]
[SourceTitle "playchess.com"]
[Source "ChessBase"]
[SourceQuality "1"]
[WhiteTeam "Kazakhstan"]
[BlackTeam "France"]
[WhiteTeamCountry "KAZ"]
[BlackTeamCountry "FRA"]
[TimeControl "40/5400+30:1800+30"]

1. e4 {[%emt 0:00:02]} c6 {[%emt 0:00:04]} 2. d4 {[%emt 0:00:08]} d5 {[%emt 0:00:07]} 3. e5 {[%emt 0:00:05]} Bf5 {[%emt 0:00:07]} 4. h4 {[%emt 0:00:26]} h5 {[%emt 0:00:16]} 5. Bd3 {[%emt 0:00:23]} Bxd3 {[%emt 0:00:18]} 6. Qxd3 {[%emt 0:00:06]} Qa5+ {[%emt 0:00:10]} 7. c3 {[%emt 0:00:38]} Qa6 {[%emt 0:04:17]} 8. Qf3 {[%emt 0:00:20]} e6 {[%emt 0:00:22]} 9. b4 {[%emt 0:00:26]} b6 {[%emt 0:05:11]} 10. Ne2 {[%emt 0:09:17]} c5 {[%emt 0:02:53]} 11. bxc5 {[%emt 0:07:14]} bxc5 {[%emt 0:01:33]} 12. O-O {[%emt 0:09:14]} Ne7 {[%emt 0:08:02]} 13. c4 {[%emt 0:10:22]} Nbc6 {[%emt 0:11:45]} 14. cxd5 {[%emt 0:13:10]} Nxd5 {[%emt 0:00:45]} 15. Nbc3 {[%emt 0:07:46]} Rd8 {[%emt 0:05:54]} 16. Nxd5 {[%emt 0:06:48]} Rxd5 {[%emt 0:00:14]} 17. dxc5 {[%emt 0:00:13]} Nxe5 {[%emt 0:17:53]} 18. Qe4 {[%emt 0:02:45]} f5 {[%emt 0:00:29]} 19. Qc2 {[%emt 0:01:54]} Rxc5 {[%emt 0:00:18]} 20. Qb3 {[%emt 0:09:53]} Kf7 {[%emt 0:12:51]} 21. Nf4 {[%emt 0:01:23]} Be7 {[%emt 0:08:36]} 22. Qg3 {[%emt 0:04:21]} Bf6 {[%emt 0:06:33]} 23. Rb1 {[%emt 0:06:20]} Ng4 {[%emt 0:02:40]} 24. Qb3 {[%emt 0:05:04]} Rhc8 {[%emt 0:02:14]} 25. Re1 {[%emt 0:00:39]} Qc4 {[%emt 0:01:29]} 26. Qa3 {[%emt 0:02:22]} Bd4 {[%emt 0:03:52]} 27. Be3 {[%emt 0:01:47]} Bxe3 {[%emt 0:00:50]} 28. fxe3 {[%emt 0:00:02]} Qc2 {[%emt 0:02:27]} 29. Nh3 {[%emt 0:00:28]} R8c7 {[%emt 0:01:06]} 30. Rbd1 {[%emt 0:01:09]} Qc3 {[%emt 0:01:11]} 31. Qa6 {[%emt 0:00:29]} R5c6 {[%emt 0:00:30]} 32. Qe2 {[%emt 0:00:36]} Qe5 {[%emt 0:00:34]} 33. Ng5+ {[%emt 0:00:21]} Kg6 {[%emt 0:00:24]} 34. Nf3 {[%emt 0:00:01]} Qg3 {[%emt 0:00:23]} 35. e4 {[%emt 0:00:13]} Rc2 {[%emt 0:00:49]} 36. exf5+ {[%emt 0:00:14]} Kh7 {[%emt 0:00:48]} 37. Ng5+ {[%emt 0:01:22]} Kh6 {[%emt 0:00:05]} 38. Qxe6+ {[%emt 0:00:10]} Nf6 {[%emt 0:00:06]} 39. Re2 {[%emt 0:00:41]} Qxh4 {[%emt 0:01:11]} 40. Nh3 {[%emt 0:00:57]} Rxe2 {[%emt 0:00:35]} 41. Qxe2 {[%emt 0:30:07]} Qc4 {[%emt 0:11:26]} 42. Qd2+ {[%emt 0:00:00]} Kh7 {[%emt 0:00:06]} 43. Ng5+ {[%emt 0:00:00]} Kh8 {[%emt 0:00:05]} 44. Qd8+ {[%emt 0:00:00]} Ng8 {[%emt 0:00:07]} 45. Qe8 {[%emt 0:00:00]} Qc5+ {[%emt 0:06:44]} 46. Kh1 {[%emt 0:00:00]} Qe7 {[%emt 0:03:57]} 47. Qxh5+ {[%emt 0:00:00]} Nh6 {[%emt 0:00:03]} 48. Qg6 {[%emt 0:00:00]} 1-0

[Event "45th FIDE Womens Olympiad 2024"]
[Site "Budapest"]
[Date "2024.09.19"]
[Round "8.12"]
[White "Benmesbah, Natacha"]
[Black "Kairbekova, Amina"]
[Result "1/2-1/2"]
[ECO "B30"]
[WhiteElo "2258"]
[BlackElo "2243"]
[Annotator "RC"]
[PlyCount "130"]
[EventDate "2024.09.05"]
[EventType "team-tourn"]
[EventCountry "HUN"]
[SourceTitle "playchess.com"]
[Source "ChessBase"]
[SourceQuality "1"]
[WhiteTeam "France"]
[BlackTeam "Kazakhstan"]
[WhiteTeamCountry "FRA"]
[BlackTeamCountry "KAZ"]
[TimeControl "40/5400+30:1800+30"]

1. e4 {[%emt 0:00:02]} c5 {[%emt 0:00:06]} 2. Nf3 {[%emt 0:00:04]} e6 {[%emt 0:00:04]} 3. Nc3 {[%emt 0:00:05]} Nc6 {[%emt 0:00:23]} 4. Bb5 {[%emt 0:00:05]} Nd4 {[%emt 0:00:20]} 5. O-O {[%emt 0:00:18]} a6 {[%emt 0:00:04]} 6. Bd3 {[%emt 0:00:22]} Nc6 {[%emt 0:00:08]} 7. Be2 {[%emt 0:00:39]} Nd4 {[%emt 0:00:08]} 8. Bd3 {[%emt 0:00:21]} Nc6 {[%emt 0:00:15]} 9. b3 {[%emt 0:00:16]} Nge7 {[%emt 0:14:56]} 10. Bb2 {[%emt 0:18:10]} Ng6 {[%emt 0:00:52]} 11. Re1 {[%emt 0:01:05]} d6 {[%emt 0:04:18]} 12. Bf1 {[%emt 0:01:56]} Be7 {[%emt 0:04:51]} 13. d4 {[%emt 0:03:17]} cxd4 {[%emt 0:01:14]} 14. Nxd4 {[%emt 0:00:14]} O-O {[%emt 0:00:17]} 15. a4 {[%emt 0:10:21]} Qa5 {[%emt 0:10:13]} 16. Ncb5 {[%emt 0:12:21]} Nxd4 {[%emt 0:05:32]} 17. Bxd4 {[%emt 0:05:02]} Bd7 {[%emt 0:05:44]} 18. Na3 {[%emt 0:06:26]} d5 {[%emt 0:00:51]} 19. exd5 {[%emt 0:02:57]} exd5 {[%emt 0:00:33]} 20. c3 {[%emt 0:02:46]} Bd6 {[%emt 0:05:33]} 21. Nc2 {[%emt 0:10:06]} Rae8 {[%emt 0:01:26]} 22. Rxe8 {[%emt 0:02:29]} Rxe8 {[%emt 0:00:05]} 23. Ne3 {[%emt 0:00:20]} Be6 {[%emt 0:09:44]} 24. g3 {[%emt 0:05:36]} Rc8 {[%emt 0:09:31]} 25. Bg2 {[%emt 0:01:23]} Ne7 {[%emt 0:01:18]} 26. Qh5 {[%emt 0:10:36]} f6 {[%emt 0:06:46]} 27. b4 {[%emt 0:03:30]} Qd8 {[%emt 0:02:39]} 28. Nxd5 {[%emt 0:00:39]} Nf5 {[%emt 0:06:27]} 29. Bb6 {[%emt 0:00:34]} Qd7 {[%emt 0:00:21]} 30. Rd1 {[%emt 0:01:44]} Qxa4 {[%emt 0:01:24]} 31. Be4 {[%emt 0:00:32]} Bf8 {[%emt 0:08:31]} 32. Re1 {[%emt 0:00:55]} Qd7 {[%emt 0:00:58]} 33. Nf4 {[%emt 0:00:36]} g6 {[%emt 0:00:13]} 34. Qf3 {[%emt 0:00:29]} Bf7 {[%emt 0:00:52]} 35. Bxb7 {[%emt 0:00:46]} Qd2 {[%emt 0:00:49]} 36. Bxc8 {[%emt 0:00:50]} Qxe1+ {[%emt 0:00:04]} 37. Kg2 {[%emt 0:00:01]} Bc4 {[%emt 0:00:05]} 38. h3 {[%emt 0:00:52]} Nd6 {[%emt 0:00:57]} 39. Bd7 {[%emt 0:00:30]} Ne4 {[%emt 0:00:14]} 40. Be6+ {[%emt 0:00:31]} Bxe6 {[%emt 0:00:32]} 41. Nxe6 {[%emt 0:14:28]} Be7 {[%emt 0:13:01]} 42. Nf4 {[%emt 0:00:00]} Nxc3 {[%emt 0:03:55]} 43. Bd4 {[%emt 0:00:00]} Nb5 {[%emt 0:08:22]} 44. Qd5+ {[%emt 0:02:14]} Kf8 {[%emt 0:01:38]} 45. Ne6+ {[%emt 0:09:31]} Ke8 {[%emt 0:00:04]} 46. Bc5 {[%emt 0:01:15]} Qe5 {[%emt 0:02:21]} 47. Qc6+ {[%emt 0:02:32]} Kf7 {[%emt 0:00:36]} 48. Nf4 {[%emt 0:00:36]} Nc7 {[%emt 0:03:58]} 49. Kh2 {[%emt 0:02:32]} Bxc5 {[%emt 0:01:13]} 50. bxc5 {[%emt 0:00:10]} g5 {[%emt 0:00:32]} 51. Nd3 {[%emt 0:00:22]} Qe7 {[%emt 0:00:05]} 52. Nb4 {[%emt 0:01:19]} Qe5 {[%emt 0:00:54]} 53. Qd7+ {[%emt 0:00:45]} Qe7 {[%emt 0:00:22]} 54. Qd4 {[%emt 0:00:21]} Ne6 {[%emt 0:00:04]} 55. Qe4 {[%emt 0:00:44]} Qxc5 {[%emt 0:00:08]} 56. Nd3 {[%emt 0:01:17]} Qd4 {[%emt 0:00:30]} 57. Qxh7+ {[%emt 0:00:13]} Ng7 {[%emt 0:00:04]} 58. Kg2 {[%emt 0:00:53]} a5 {[%emt 0:00:05]} 59. h4 {[%emt 0:00:09]} gxh4 {[%emt 0:00:11]} 60. Nf4 {[%emt 0:00:04]} hxg3 {[%emt 0:01:04]} 61. Qg6+ {[%emt 0:00:25]} Kf8 {[%emt 0:00:17]} 62. fxg3 {[%emt 0:00:52]} Qd2+ {[%emt 0:00:18]} 63. Kh3 {[%emt 0:00:15]} Qd7+ {[%emt 0:00:23]} 64. Kg2 {[%emt 0:00:27]} Qf5 {[%emt 0:00:52]} 65. Qh6 {[%emt 0:00:28]} a4 {[%emt 0:00:58]} 1/2-1/2